Cogmind - Beta 17.1 @@@ ROGUE MODE // 2026.09.21 @ 10:30:48 Player: Zaje Result: Destroyed by Y-45 Defender with Heavy Assault Rifle Performance ------------- Evolutions (0) 0 Regions Visited (3) 600 Robots Destroyed (29) 145 Value Destroyed (706) 706 Prototype IDs (14) 280 Alien Tech Used (0) 0 Bonus (0) 0 TOTAL SCORE: 1731 Bonus ------- None Cogmind --------- Core Integrity 0/250 Matter 37/300 Energy 88/100 System Corruption 0% Temperature Cool (0) Movement Treading (240) Ox1 Location -8/Recycling Parts ------- > --- POWER (1) -------- (None) > --- PROPULSION (2) --- Light Treads Makeshift Flight Unit > --- UTILITY (2) ------ Large Storage Unit Targeting Computer > --- WEAPON (2) ------- Heavy Assault Rifle Heavy Assault Rifle > --- INVENTORY (15) --- Improved Heat Sink Large Storage Unit Hacking Suite Hacking Suite Heavy Assault Rifle Heavy Assault Rifle Subdweller Machine Gun Peak State ------------ > --- POWER ------------ (None) > --- PROPULSION ------- Light Treads Makeshift Flight Unit > --- UTILITY ---------- Large Storage Unit Targeting Computer > --- WEAPON ----------- Heavy Assault Rifle Heavy Assault Rifle > --- INVENTORY -------- Improved Heat Sink Large Storage Unit Hacking Suite Hacking Suite Heavy Assault Rifle Heavy Assault Rifle Subdweller Machine Gun Grenade Launcher [Rating: 12] Favorites ----------- Power Ion Engine Engine Ion Engine Propulsion Light Treads Treads Light Treads Flight Unit Makeshift Flight Unit Utility Targeting Computer Storage Large Storage Unit Processor Targeting Computer Weapon Heavy Assault Rifle Ballistic Gun Heavy Assault Rifle Launcher Grenade Launcher Build | -11 -10 -10 -8 ------- Run | Yrd Mat Sub Rec Slots Evolved . | . . . . Power . | . . . . Propulsion . | . . . . Utility . | . . . . Weapon . | . . . . Parts Attached 21 | 6 4 10 1 Power 3 | 1 . 2 . Engine 3 | 1 . 2 . Core . | . . . . Reactor . | . . . . Propulsion 6 | 2 . 3 1 Treads 5 | 2 . 3 . Leg . | . . . . Wheel . | . . . . Hover . | . . . . Flight 1 | . . . 1 Utility 3 | 1 2 . . Device . | . . . . Storage 2 | 1 1 . . Processor 1 | . 1 . . Hackware . | . . . . Protection . | . . . . Artifact . | . . . . Weapon 9 | 2 2 5 . Energy Gun . | . . . . Energy Cannon . | . . . . Ballistic Gun 8 | 2 2 4 . Ballistic Cannon . | . . . . Launcher 1 | . . 1 . Special Weapon . | . . . . Impact Weapon . | . . . . Slashing Weapon . | . . . . Piercing Weapon . | . . . . Special Melee Weapon . | . . . . Unidentified Prototypes . | . . . . Parts Lost 10 | . . 9 1 Power 3 | . . 3 . Propulsion 4 | . . 4 . Utility . | . . . . Weapon 3 | . . 2 1 Highest Loss Streak 5 | . . 5 1 To Critical Strikes 1 | . . 1 . Average Backups 10 | 2 10 11 8 Power . | . 1 . . Propulsion 2 | 1 2 2 . Utility 3 | . 2 4 4 Weapon 4 | . 4 4 3 Tool/Special . | . . . . Unused Backups 8 | . 3 . 5 Power . | . . . . Propulsion 2 | . 2 . . Utility 5 | . 1 . 4 Weapon 1 | . . . 1 Tool/Special . | . . . . Average Slot Usage (%) 91 | . 97 89 77 Engine 10 | . 14 10 . Treads 22 | . 27 21 14 Storage 14 | . 14 14 14 Processor 13 | . 12 14 14 Ballistic Gun 25 | . 28 23 21 Launcher 2 | . . 4 7 Peak Build Rating 12 | 6 11 11 12 Average Rating 9 | 5 10 10 9 On Entrance 6 | . 6 11 8 Avg Prop Armor Cover (%) 2 | . . . 2 Naked Turns . | . . . . Heaviest Build 31 | 14 31 31 26 Greatest Support 40 | 40 40 40 20 Greatest Overweight (x) 10 | . 10 1 1 Average Overweight (x) . | . . . 1 Largest Inventory Capacity 15 | 8 15 15 15 Average Capacity 14 | 7 13 15 15 Most Carried 15 | 3 15 14 9 Average Carried 10 | 2 10 11 8 Final Capacity 15 | 8 15 15 15 Final Carried 13 | 3 13 9 7 Class Distribution -------------------- 100% | Mutant Dominant Class ---------------- Mutant | -10/Materials Mutant | -10/Subcaves Mutant | -8/Recycling Resources | -11 -10 -10 -8 ----------- Run | Yrd Mat Sub Rec Matter Collected 981 | 260 350 371 . Remotely . | . . . . Salvage Created 791 | . 579 176 36 Parts 55 | . 43 12 . Haulers Intercepted 2 | . 2 . . Recyclers Shooed . | . . . . Parts Field Recycled . | . . . . Retrieved Matter . | . . . . Parts Self-Destructed 11 | . . 11 . Prevented . | . . . . Parts Restored . | . . . . Kills | -11 -10 -10 -8 ------- Run | Yrd Mat Sub Rec Combat Hostiles Destroyed 20 | . 12 7 1 Guns 17 | . 12 4 1 AOE 3 | . . 3 . Classes Destroyed 9 | . 6 2 1 Worker 1 | . 1 . . Hauler 2 | . 2 . . Operator 2 | . 2 . . Turret 2 | . . 2 . Watcher 2 | . 2 . . Swarmer 7 | . 3 4 . Grunt 9 | . 9 . . Sentry 1 | . . . 1 Subdweller 3 | . . 3 . Best Kill Streak 6 | . 6 4 1 Combat Bots Only 4 | . 4 4 1 Max Kills in Single Turn 2 | . 1 2 1 Gunslinging . | . . . . Exploded 2 | . . 2 . Melee . | . . . . Uniques/NPCs Destroyed . | . . . . Combat | -11 -10 -10 -8 -------- Run | Yrd Mat Sub Rec Hostile Shots Fired 163 | . 37 120 6 Missed 48 | . 8 39 1 Hits 115 | . 29 81 5 Projectile 115 | . 29 81 5 Critical Strikes 1 | . . 1 . Damage Taken 1593 | . 322 1200 71 Core 250 | . 27 211 12 Absorbed by Shields . | . . . . Core Remaining (%) 100 | 100 . . . Volleys Fired 114 | . 46 64 4 Largest 2 | . 2 2 2 Hottest 46 | . 46 46 46 Shots Fired 195 | . 92 98 5 Gun 170 | . 92 76 2 Cannon . | . . . . Launcher 25 | . . 22 3 Special . | . . . . Kinetic 170 | . 92 76 2 Thermal . | . . . . Explosive 25 | . . 22 3 Electromagnetic . | . . . . Robot Hit Streak 15 | . 12 15 5 Robot Miss Streak 3 | . 3 2 . Penetration Max . | . . . . Secondary Targets . | . . . . Shots Hit Robots 122 | . 64 55 3 Core Hits 47 | . 26 18 3 Critical Kills . | . . . . Critical Parts Destroyed . | . . . . Critical Strikes . | . . . . Melee Attacks . | . . . . Impact . | . . . . Slashing . | . . . . Piercing . | . . . . Sneak Attacks . | . . . . Combat Hostiles . | . . . . Follow-up Attacks . | . . . . Damage Inflicted 1982 | . 965 927 90 Guns 1577 | . 965 579 33 Cannons . | . . . . Explosions 405 | . . 348 57 Melee . | . . . . Ramming . | . . . . Kinetic 1577 | . 965 579 33 Thermal . | . . . . Explosive 405 | . . 348 57 Electromagnetic . | . . . . Impact . | . . . . Slashing . | . . . . Piercing . | . . . . Highest Corruption . | . . . . Average Corruption . | . . . . Corruption Purged . | . . . . Corruption Blocked . | . . . . Overload Shots . | . . . . Overflow Damage 40 | . . 40 . Projectiles . | . . . . Explosions 40 | . . 40 . Melee . | . . . . Knockbacks . | . . . . Impact . | . . . . Kinetic . | . . . . Secondary . | . . . . Self-Inflicted Damage 108 | . . 108 . Shots 4 | . . 4 . Rammed . | . . . . Targets Rammed . | . . . . Kicked . | . . . . Crushed . | . . . . Highest Temperature 5 | . 5 . . Average Temperature 2 | . 2 . . Received Heat Transfer 330 | . 138 174 18 Siege Activations . | . . . . Martial Activations . | . . . . Shielding Activations . | . . . . Robots Disrupted . | . . . . Combat Hostiles . | . . . . Robots Corrupted . | . . . . Combat Hostiles . | . . . . Parts Fried . | . . . . Impact Corruptions . | . . . . Robots Melted . | . . . . Combat Hostiles . | . . . . Parts Melted 1 | . . 1 . Heat Transferred . | . . . . Parts Sabotaged . | . . . . Parts Stolen . | . . . . Parts Stripped . | . . . . Power Chain Reactions . | . . . . Alert | -11 -10 -10 -8 ------- Run | Yrd Mat Sub Rec Maximum Alert Level . | . . . . Low Security (%) 100 | 100 100 . 100 Level 1 . | . . . . Level 2 . | . . . . Level 3 . | . . . . Level 4 . | . . . . Level 5 . | . . . . High Security . | . . . . Max Security . | . . . . Peak Influence 126 | . 104 . 126 Initial 126 | . . . 126 Average 33 | . 29 . 65 Influence Increases 715 | . 357 300 58 Destroy 0b10 Robot/C 380 | . 240 120 20 Destroy 0b10 Robot/NC 35 | . 35 . . Destroy Leader 58 | . 58 . . Successful Hack 29 | . 21 . 8 Disable Machine 15 | . . . 15 Destroy Structure 18 | . 3 . 15 Lose Combat Pursuer 180 | . . 180 . Influence Decreases 671 | . 354 39 278 Entered New Map 141 | . . 3 138 Time Decay 476 | . 330 16 130 Lost Part 30 | . . 20 10 Purge Threat 24 | . 24 . . Squads Dispatched 2 | . 2 . . Investigation . | . . . . Extermination . | . . . . Reinforcement 2 | . 2 . . Assault . | . . . . Garrison . | . . . . Intercept . | . . . . Searches Triggered . | . . . . Construction Impeded . | . . . . Haulers Reinforced . | . . . . Active Scanning Responses . | . . . . Cargo Convoy Interrupts . | . . . . Stealth | -11 -10 -10 -8 --------- Run | Yrd Mat Sub Rec Distress Signals 1 | . 1 . . Communications Jammed . | . . . . Distress Signals . | . . . . Times Spotted 35 | . 24 9 2 Peak Tracking Total 5 | . 5 5 2 Tactical Retreats 5 | . . 5 . Traps | -11 -10 -10 -8 ------- Run | Yrd Mat Sub Rec Traps Triggered 4 | . 1 3 . Indirectly . | . . . . Trap Hack Attempts . | . . . . Triggered . | . . . . Disarmed . | . . . . Reprogrammed . | . . . . Reused . | . . . . Traps Extracted . | . . . . Installed . | . . . . Triggered . | . . . . Machines | -11 -10 -10 -8 ---------- Run | Yrd Mat Sub Rec Machines Disabled 6 | . . 5 1 Max in Single Turn 1 | . . 1 1 Machines Repaired . | . . . . Machines Dismantled . | . . . . Machines Sabotaged . | . . . . Overloaded Fab Kills . | . . . . Hacking | -11 -10 -10 -8 --------- Run | Yrd Mat Sub Rec Machines Accessed 7 | . 4 2 1 Terminals 5 | . 4 . 1 Fabricators . | . . . . Repair Stations . | . . . . Recycling Units . | . . . . Scanalyzers . | . . . . Garrison Access . | . . . . Total Hacks 35 | . 17 14 4 Successful 27 | . 10 14 3 Failed 7 | . 6 . 1 Catastrophic 1 | . 1 . . Database Lockouts 1 | . 1 . . Manual 26 | . 19 2 5 Terminals 21 | . 17 . 4 Fabricators . | . . . . Repair Stations . | . . . . Recycling Units . | . . . . Scanalyzers . | . . . . Garrison Access . | . . . . Terminal Hacks 19 | . 4 14 1 Record 13 | . . 13 . Robot Analysis 3 | . 2 . 1 Unreport Threat 1 | . 1 . . Hauler Manifests 1 | . 1 . . Proto ID Catalog 1 | . . 1 . Fabricator Hacks . | . . . . Repair Station Hacks . | . . . . Recycling Unit Hacks . | . . . . Scanalyzer . | . . . . Garrison Access Hacks . | . . . . Unauthorized Hacks 8 | . 6 . 2 Terminals 8 | . 6 . 2 Track 1 | . 1 . . Assimilate 1 | . 1 . . Botnet 5 | . 4 . 1 Detonate 1 | . . . 1 Fabricators . | . . . . Repair Stations . | . . . . Recycling Units . | . . . . Scanalyzers . | . . . . Garrison Access . | . . . . Data Cores Recovered . | . . . . Used . | . . . . Hacking Detections 4 | . 3 . 1 Full Trace Events . | . . . . Feedback Events . | . . . . Feedback Blocked . | . . . . Robot Schematics Acquired . | . . . . Robots Built . | . . . . Authchips . | . . . . Time . | . . . . Total Robot Build Rating . | . . . . Part Schematics Acquired . | . . . . Parts Built . | . . . . Authchips . | . . . . Time . | . . . . Total Part Build Rating . | . . . . Part Studies Acquired . | . . . . Parts Repaired . | . . . . Time . | . . . . Parts Recycled . | . . . . Recycled Matter . | . . . . Retrieved Matter . | . . . . Retrieved Components . | . . . . Parts Scanalyzed . | . . . . Part Schematics Acquired . | . . . . Parts Damaged . | . . . . Bothacking | -11 -10 -10 -8 ------------ Run | Yrd Mat Sub Rec Used RIF Installer . | . . . . Robots Hacked . | . . . . Non-combat . | . . . . Combat . | . . . . Robot Hacks Applied . | . . . . Relay Couplers Released . | . . . . Fabnet Peak Effective % . | . . . . Robots Rewired . | . . . . Allies Hacked . | . . . . Hacks Repelled . | . . . . Allies | -11 -10 -10 -8 -------- Run | Yrd Mat Sub Rec Total Allies . | . . . . Largest Group . | . . . . Highest-Rated Group . | . . . . Highest-Rated Ally . | . . . . Total Orders . | . . . . Ally Attacks . | . . . . Total Damage . | . . . . Kills . | . . . . Allies Corrupted . | . . . . Allies Melted . | . . . . Intel | -11 -10 -10 -8 ------- Run | Yrd Mat Sub Rec Active Infowar (turns) . | . . . . Robot Analysis Total 3 | . 2 . 1 Derelict Logs Recovered 2 | . . 2 . Drone Launches . | . . . . Drone Recoveries . | . . . . Exploration | -11 -10 -10 -8 ------------- Run | Yrd Mat Sub Rec Turns Passed 4553 | 115 1476 2690 272 Spaces Moved 2300 | 68 797 1327 108 Core 8 | 4 4 . . Treads 2292 | 64 793 1327 108 Legs . | . . . . Wheels . | . . . . Hover . | . . . . Flight . | . . . . Fastest Speed 50 | 50 160 160 240 Average Speed 180 | 153 161 188 240 Slowest Speed 550 | 160 550 240 240 Overloaded Moves . | . . . . Propulsion Burnouts . | . . . . Robots Hopped . | . . . . Potential Cave-ins . | . . . . Cave-ins Triggered . | . . . . Exploration Rate (%) 36 | 5 87 44 11 Regions Visited 3 Branch Regions 2 Pre-discovered Areas 2 | . . 2 . Known Exits Taken 1 | . . 1 . Unknown Exits Taken 2 | 1 1 . . Scrap Searched . | . . . . Spaces Dug . | . . . . Terrain Destroyed 88 | . . 70 18 Melee . | . . . . Projectile . | . . . . AOE 88 | . . 70 18 Terrain Rammed . | . . . . Walls Destroyed . | . . . . Machines Disabled . | . . . . Actions | -11 -10 -10 -8 --------- Run | Yrd Mat Sub Rec Total 2490 | 76 892 1406 116 Wait 23 | . 23 . . Move 2297 | 67 796 1326 108 Hop . | . . . . Pick Up 20 | 3 15 2 . Fast Attach 8 | 6 1 1 . Attach 10 | . 2 6 2 Detach . | . . . . Swap 12 | . 3 7 2 Drop 6 | . 6 . . Fire 114 | . 46 64 4 Melee . | . . . . Ram . | . . . . Kick . | . . . . Crush . | . . . . Escape Stasis . | . . . . Rewire . | . . . . Trap . | . . . . Miscellaneous . | . . . . Route ------- -11/Scrapyard -10/Materials (discovered 4 exits: [*Mat x2] / [*Min] / *Sub) -10/Subcaves (discovered 3 exits: *Mat x2 / *Rec) -8/Recycling History --------- Turn | Location | Event 16 | -11/Scrapyard | Discovered new exit (range 15) 116 | -11/Scrapyard | Entered Materials 316 | -10/Materials | Build established: Mutant 477 | -10/Materials | Discovered new exit (range 15) 477 | -10/Materials | Discovered new exit (range 7) 868 | -10/Materials | Central database locked down 1088 | -10/Materials | Discovered new exit (range 16) 1576 | -10/Materials | Discovered new exit (range 8) 1592 | -10/Materials | Entered Subcaves 1593 | -10/Subcaves | Approached by a straggling Scientist 2074 | -10/Subcaves | Visited Clippyterm 2079 | -10/Subcaves | Identified exit to Materials 2079 | -10/Subcaves | Identified exit to Recycling 2079 | -10/Subcaves | Learned location of Section 7 (-2) 2143 | -10/Subcaves | Learned Materials emergency access door positions 2299 | -10/Subcaves | A swath of the cavern ceiling suddenly collapsed 2606 | -10/Subcaves | Visited 4L-MR0's lab 2821 | -10/Subcaves | Shifting Twisted Machinery released Battle Rifle 2826 | -10/Subcaves | Shifting Twisted Machinery released Mak. Flight Unit 2886 | -10/Subcaves | Learned location of Storage (-8) 3139 | -10/Subcaves | Core integrity fell below 50% 3202 | -10/Subcaves | Lost 5 parts (2p1n2w) 3718 | -10/Subcaves | Ambushed by Subdweller buried in earth 3899 | -10/Subcaves | A swath of the cavern ceiling suddenly collapsed 4125 | -10/Subcaves | Core integrity fell below 20% 4282 | -10/Subcaves | Entered Recycling 4283 | -8/Recycling | Met a Zionite searching for Scraptown 4554 | -8/Recycling | Destroyed by Y-45 Defender with Heavy Assault Rifle Last Messages --------------- The I-36 Angel's remote force field is 33% more effective than the I-25's shield generator, shielding targets from half of all damage where there is enough energy to support the field. Protector class robots are not especially well armored, but in addition to their shield are also strong against more common thermal weaponry, as well as always working in concert with a larger assault force. 04463_ Connecting with Terminal... >>Trojan(Detonate) Trojan loaded successfully. Testing... Scanning machine control network... No applicable machines found. 04546_ Recycling Unit disabled. 04546_ Com. Matter Pod tumbles out of recycling unit. 04551_ U-05 Engineer lays Concrete. 04551_ Grenade Launcher destroyed. 04552_ U-05 Engineer lays Concrete. 04553_ Y-45 Defender destroyed. 04553_ U-05 Engineer lays Concrete. 04554_ U-05 Engineer suffers critical hit (Burn). Map ----- +----------------------------------------------------+ | ?????????????????????????????????? | | ?????????????????????????????????? | | ?????????????????????????????????? | | ?????????????????????????????????? | | ?????????????????????????????????? | | ?????????????????????????????????? | | ??????? ???????????????????????? | | ??????# ???????????????????????? | | ??????# ???????????????????????? | | ??????# ???????????????????????? | | ??????# #??????????????????????? | | ??????# #??????????????????????? | | ??????# % !??????????????????????? | | ?????## Y ??????????????????????? | | ?????# ??????????????????????? | | ?????? ??????????????????????? | | ?????? ??????????????????????? | | ?????? % ##????????????????????? | | ????### "#????????????????????? | | ????#== Y"#????????????????????? | | ????#== ""?????????????????????? | | ????#== u #??#####???????????????? | | ????### ####"T"###?????????????? | | ??????# # #?????????????? | | ??????# # """ ""#???????????? | | ??????# @# """"" Y"#???????????? | | ??????# # """"" ""#???????????? | | ??????# # """"" ###???????????? | | ??????# # """ #?????????????? | | ????### + #?????????????? | | ????#!! # #?????????????? | | ????#!! # #?????????????? | | ????# ! ##########?????????????? | | ????### #??????????????????????? | | ??????# ##########?????????????? | | ????### # #?????????????? | | ????#! # #?????????????? | | ????#!! # #?????????????? | | ????# ! # #?????????????? | | ????### + #?????????????? | | ??????# # #?????????????? | | ??????# # #?????????????? | | ??????# # #?????????????? | | ??????# # #?????????????? | | ??????# ### ######?????????????? | | ??????#####??##??????????????????? | | ?????????????????????????????????? | | ?????????????????????????????????? | | ?????????????????????????????????? | | ?????????????????????????????????? | +----------------------------------------------------+ Best States ------------- Heat Dissipation 25 Energy Generation 15 Energy Capacity 250 Matter Stores 300 Matter Capacity 300 Sight Range 16 Terrain Scan Density 10 Evasion (%) 40 Targeting Accuracy 5 Recoil Reduction 2 Item Schematics ----------------- None Robot Schematics ------------------ None Fabricated ------------ Nothing Repaired ---------- Nothing Studied --------- None Alien Tech Used ----------------- None Achievements -------------- Mistaken Identity Challenges ------------ None Game ------ Seed MiningPhysicsRay Manual? 0 Play Time 00:26:15 Cumulative 21.2 hours Start 2026.09.21 @ 10:05:45 End 2026.09.21 @ 10:30:48 Sessions 1 Manual Loads 0 Difficulty Rogue Special Mode None Game No. 32 Rogue 32 Adventurer 0 Explorer 0 Win Type - Total 1 Types 1/0/0/0/0/0/0/0/0/0 Lore% 18 Gallery% 19 Achievement% 20 Wizard Run 0 Options --------- Layout 0 ASCII 0 Keyboard 1 Movement Vi Keybinds 1 Fullscreen 1 Font 24/Smallcaps Map View 76x50 Zoom Use 0% Tactical HUD 1 Map Filters NONE Filters NONE Steam 1 RUN: ae5546b0-5627-4e48-a6d7-a8795e8cfdc1